Cogmind - Beta 9.6 @@@ ROGUE MODE // 2020.04.16 @ 00:15:22 Player: TBExtent Result: Heading to fleet! Performance ------------- Evolutions (9) 4500 Regions Visited (19) 3800 Robots Destroyed (152) 760 Value Destroyed (4315) 4315 Prototype IDs (64) 1280 Alien Tech Used (4) 800 Bonus (6248) 6248 TOTAL SCORE: 21703 Bonus ------- High Alert Combat Kills 22 Follower Combat Kills 1540 Network Hubs Disabled 400 Built Enhanced Grunts 300 A7 Reached Mainframe 300 Used Core Reset Matrix 3000 Win 3000 Friendly Fire -2314 Cogmind --------- Core Integrity 1600/1600 Matter 85/300 Energy 24/190 System Corruption 0% Temperature Cool (15) Movement Flying (17) Location To Fleet Rendezvous Parts ------- > --- POWER (1) -------- Light Quantum Reactor > --- PROPULSION (6) --- Cooled Nuclear Pulse Thruster Experimental Cesium-ion Thruster Experimental Cesium-ion Thruster Experimental Cesium-ion Thruster Improved Diametric Drive Improved Diametric Drive > --- UTILITY (16) ----- Medium Storage Unit Long-range Sensor Array Advanced Signal Interpreter Centrium Medium Armor Plating Hacking Suite Improved Hacking Suite Improved Hacking Suite Improved Hacking Suite Improved Hacking Suite Improved Hacking Suite Advanced Hacking Suite Advanced Hacking Suite Experimental Hacking Suite Improved System Shield Improved System Shield Improved System Shield > --- WEAPON (2) ------- Power Sword > --- INVENTORY (8) ---- Light Antimatter Reactor Improved Diametric Drive Impulse Thruster Array Long-range Sensor Array Katana Peak State ------------ > --- POWER ------------ Light Quantum Reactor > --- PROPULSION ------- Cooled Nuclear Pulse Thruster Experimental Cesium-ion Thruster Experimental Cesium-ion Thruster Experimental Cesium-ion Thruster Improved Diametric Drive Improved Diametric Drive > --- UTILITY ---------- Medium Storage Unit Long-range Sensor Array Advanced Signal Interpreter Centrium Medium Armor Plating Hacking Suite Improved Hacking Suite Improved Hacking Suite Improved Hacking Suite Improved Hacking Suite Improved Hacking Suite Advanced Hacking Suite Advanced Hacking Suite Experimental Hacking Suite Improved System Shield Improved System Shield Improved System Shield > --- WEAPON ----------- Power Sword > --- INVENTORY -------- Light Antimatter Reactor Improved Diametric Drive Impulse Thruster Array Long-range Sensor Array Katana [Rating: 143] Favorites ----------- Power Light Nuclear Core Engine Ion Engine Power Core Light Nuclear Core Reactor Light Antimatter Reactor Propulsion Aluminum Leg Treads Light Treads Leg Aluminum Leg Hover Unit Airjet Flight Unit Field Propulsion Array Utility High-capacity Storage Unit Device Long-range Sensor Array Storage High-capacity Storage Unit Processor Advanced Signal Interpreter Hackware Hacking Suite Protection Improved Power Shielding Weapon Improved Assault Rifle Energy Gun Spread Laser Energy Cannon Light EM Pulse Cannon Ballistic Gun Improved Assault Rifle Launcher Shock Bomb Launcher Special Weapon Plasma Cutter Slashing Weapon Power Sword Special Melee Weapon Datajack Build | -11 -10 -10 -9 -9 -9 -8 -8 -7 -6 -5 -4 -4 -4 -4 -4 -3 -2 -2 -1 ------- Run | Scr Mat Min Mat Min Exi Min Mat Fac Fac Fac Fac Ext Cet Arc Hub Res Res Qua Acc Slots Evolved 18 | . . . 2 . . . 2 2 2 2 2 . . . . 2 2 . 2 Power . | . . . . . . . . . . . . . . . . . . . . Propulsion 4 | . . . 1 . . . . . . . . . . . . 1 . . 2 Utility 14 | . . . 1 . . . 2 2 2 2 2 . . . . 1 2 . . Weapon . | . . . . . . . . . . . . . . . . . . . . Parts Attached 211 | 2 14 . 15 7 2 . 52 14 8 26 13 13 4 5 3 12 5 8 8 Power 19 | . 4 . 2 . . . 4 1 1 1 1 2 . . 1 . . 1 1 Engine 8 | . 3 . 2 . . . 2 . . . . 1 . . . . . . . Core 8 | . 1 . . . . . 2 1 1 1 1 . . . 1 . . . . Reactor 3 | . . . . . . . . . . . . 1 . . . . . 1 1 Propulsion 57 | 2 3 . 5 2 . . 21 3 3 5 . 2 . . 1 3 1 . 6 Treads 6 | 2 1 . . 1 . . 2 . . . . . . . . . . . . Leg 27 | . 2 . 5 1 . . 19 . . . . . . . . . . . . Wheel . | . . . . . . . . . . . . . . . . . . . . Hover 7 | . . . . . . . . 3 3 1 . . . . . . . . . Flight 17 | . . . . . . . . . . 4 . 2 . . 1 3 1 . 6 Utility 70 | . 2 . 1 . . . 6 8 4 11 7 6 2 5 . 7 4 6 1 Device 19 | . . . . . . . 3 2 . 4 4 2 1 . . 1 2 . . Storage 7 | . 2 . 1 . . . 1 2 . . . 1 . . . . . . . Processor 6 | . . . . . . . 1 . 1 3 . 1 . . . . . . . Hackware 27 | . . . . . . . . 3 3 2 3 1 . 5 . 4 2 4 . Protection 11 | . . . . . . . 1 1 . 2 . 1 1 . . 2 . 2 1 Artifact . | . . . . . . . . . . . . . . . . . . . . Weapon 65 | . 5 . 7 5 2 . 21 2 . 9 5 3 2 . 1 2 . 1 . Energy Gun 12 | . 3 . 3 3 1 . 1 . . . 1 . . . . . . . . Energy Cannon 15 | . . . . . . . 4 . . 9 1 . . . 1 . . . . Ballistic Gun 14 | . 1 . 3 . . . 10 . . . . . . . . . . . . Ballistic Cannon . | . . . . . . . . . . . . . . . . . . . . Launcher 4 | . 1 . . 1 . . 2 . . . . . . . . . . . . Special Weapon 6 | . . . 1 . . . 2 1 . . 2 . . . . . . . . Impact Weapon . | . . . . . . . . . . . . . . . . . . . . Slashing Weapon 9 | . . . . . . . 1 1 . . 1 3 1 . . 2 . . . Piercing Weapon . | . . . . . . . . . . . . . . . . . . . . Special Melee Weapon 5 | . . . . 1 1 . 1 . . . . . 1 . . . . 1 . Unidentified Prototypes 4 | . . . 2 . . . . . . . . . . . . 1 1 . . Parts Lost 77 | . 6 . 9 2 . . 25 2 12 3 4 5 . . 4 2 2 1 . Power 8 | . 2 . 1 . . . 2 . 2 . . 1 . . . . . . . Propulsion 28 | . 2 . 4 1 . . 12 . 5 . 1 1 . . 1 . 1 . . Utility 20 | . . . . . . . 2 1 4 3 2 3 . . 2 1 1 1 . Weapon 21 | . 2 . 4 1 . . 9 1 1 . 1 . . . 1 1 . . . Highest Loss Streak 8 | . 2 . 3 2 . . 5 2 8 2 3 4 . . 4 2 1 1 . Average Slot Usage (%) 94 | . 99 100 99 100 100 100 97 92 88 75 81 81 91 88 88 85 89 90 93 Engine 6 | . 12 14 10 11 11 11 2 . . . . 1 5 5 1 . . . . Core 2 | . 1 . . . . . 6 7 4 3 5 2 . . 3 4 4 . . Treads 2 | . 17 . . 5 . . . . . . . . . . . . . . . Leg 17 | . 10 28 32 27 33 33 26 . . . . . . . . . . . . Hover 1 | . . . . . . . . 22 19 1 . . . . . . . . . Flight 2 | . . . . . . . . . . 8 9 7 10 10 10 9 13 13 21 Device 2 | . . . . . . . 3 5 6 10 12 6 5 5 4 3 4 4 4 Storage 24 | . 27 28 33 33 33 33 35 16 12 5 5 7 10 10 10 9 8 7 4 Processor 2 | . . . . . . . . 7 6 19 10 10 10 10 10 4 4 4 4 Hackware 11 | . . . . . . . . 21 30 19 29 38 36 35 36 38 41 45 48 Protection 2 | . . . . . . . 5 1 . 3 3 . 5 5 5 7 8 4 3 Energy Gun 4 | . 13 14 4 10 1 11 1 . . . 1 . . . . . . . . Ballistic Gun 8 | . 13 14 13 11 11 11 10 . . . . . . . . . . . . Slashing Weapon 1 | . . . . . . . . 6 5 . 2 3 5 5 4 3 4 4 4 Naked Turns . | . . . . . . . . . . . . . . . . . . . . Heaviest Build 113 | 10 58 56 93 96 93 93 113 106 24 32 29 33 33 32 32 35 35 41 35 Greatest Support 52 | 40 40 20 30 30 30 30 47 37 31 28 28 33 33 33 33 46 41 41 52 Greatest Overweight (x) 5 | . 2 2 3 4 3 3 5 2 1 1 1 1 . . . . . . . Average Overweight (x) . | . 1 2 2 3 3 3 2 . . . . . . . . . . . . Largest Inventory Capacity 36 | 6 18 18 26 26 26 26 32 36 12 8 8 12 12 12 12 12 12 12 8 Average Capacity 20 | 6 17 18 25 26 26 26 31 13 11 8 8 9 12 12 12 12 12 11 8 Most Carried 32 | 6 18 18 26 26 26 26 32 31 12 8 8 12 12 12 12 12 12 12 8 Average Carried 19 | 6 16 18 24 25 26 25 30 12 9 7 7 9 11 11 11 9 11 11 6 Final Capacity 32 | 6 18 18 26 26 26 26 32 12 8 8 8 12 12 12 12 12 12 8 8 Final Carried 32 | 6 18 18 26 26 26 26 32 12 8 8 8 12 12 12 11 12 10 8 6 Class Distribution -------------------- 51% | Hauler-Mutant 12% | Wizard-Mutant 8% | Mutant 7% | Wizard-Sprinter 6% | Scavenger-Mutant 5% | Hacker-Mutant 5% | Hacker-Scout Dominant Class ---------------- Mutant | -10/Materials Scavenger-Mutant | -10/Mines Hauler-Mutant | -9/Materials Hauler-Mutant | -9/Mines Hauler-Mutant | -9/Exiles Hauler-Mutant | -8/Mines Hauler-Mutant | -8/Materials Hacker-Mutant | -7/Factory Hacker-Mutant | -6/Factory Hacker-Scout | -5/Factory Hacker-Scout | -4/Factory Wizard-Mutant | -4/Extension Wizard-Mutant | -4/Cetus Wizard-Mutant | -4/Archives Wizard-Mutant | -4/Hub_04(d) Wizard-Mutant | -3/Research Wizard-Sprinter | -2/Research Wizard-Sprinter | -2/Quarantine Wizard-Sprinter | -1/Access Resources | -11 -10 -10 -9 -9 -9 -8 -8 -7 -6 -5 -4 -4 -4 -4 -4 -3 -2 -2 -1 ----------- Run | Scr Mat Min Mat Min Exi Min Mat Fac Fac Fac Fac Ext Cet Arc Hub Res Res Qua Acc Matter Collected 2986 | 197 353 . 351 151 . 26 1028 44 21 157 85 333 40 40 20 71 . 69 . Remotely . | . . . . . . . . . . . . . . . . . . . . Salvage Created 6437 | . 725 . 1023 109 . 42 2489 44 . . 195 824 . 328 411 178 . 69 . Parts 348 | . 43 . 91 14 . 1 128 3 . . 2 21 . 27 7 3 . 8 . Haulers Intercepted 21 | . 2 . 5 . . . 5 1 . . 1 5 . . 1 1 . . . Recyclers Shooed 5 | . . . 3 . . . 1 . . . . 1 . . . . . . . Parts Field Recycled . | . . . . . . . . . . . . . . . . . . . . Retrieved Matter . | . . . . . . . . . . . . . . . . . . . . Parts Self-Destructed . | . . . . . . . . . . . . . . . . . . . . Prevented . | . . . . . . . . . . . . . . . . . . . . Kills | -11 -10 -10 -9 -9 -9 -8 -8 -7 -6 -5 -4 -4 -4 -4 -4 -3 -2 -2 -1 ------- Run | Scr Mat Min Mat Min Exi Min Mat Fac Fac Fac Fac Ext Cet Arc Hub Res Res Qua Acc Combat Hostiles Destroyed 94 | . 19 . 22 8 . 1 43 . . . . 1 . . . . . . . Melee 1 | . . . . . . . . . . . . 1 . . . . . . . Guns 72 | . 17 . 22 6 . 1 26 . . . . . . . . . . . . Cannons 10 | . . . . . . . 10 . . . . . . . . . . . . AOE 8 | . 2 . . 2 . . 4 . . . . . . . . . . . . Classes Destroyed 11 | . 5 . 3 . . 1 1 . . . . 1 . . . . . . . Builder 4 | . . . . . . . 2 . . . . . . . 2 . . . . Hauler 21 | . 2 . 5 . . . 5 1 . . 1 5 . . 1 1 . . . Recycler 4 | . . . 1 . . . 1 . . . . 2 . . . . . . . Operator 19 | . 3 . 4 . . . . . . . . . . 9 . 2 . 1 . Watcher 6 | . 1 . . . . . 3 . . . . . . . . 1 . 1 . Swarmer 23 | . 3 . 7 8 . . 5 . . . . . . . . . . . . Grunt 50 | . 16 . 9 . . . 25 . . . . . . . . . . . . Duelist 5 | . . . 1 . . . 3 . . . 1 . . . . . . . . Sentry 15 | . . . 5 . . . 10 . . . . . . . . . . . . Hunter 1 | . . . . . . 1 . . . . . . . . . . . . . Programmer 1 | . . . . . . . . . . . . 1 . . . . . . . Enhanced Grunt 3 | . . . . . . . . . . . . . . . 3 . . . . Best Kill Streak 9 | . 3 . 6 6 . 1 5 1 . . 1 3 . 9 2 1 . 1 . Combat Bots Only 6 | . 3 . 6 6 . 1 5 . . . . 1 . . . . . . . Max Kills in Single Turn 2 | . 2 . 1 2 . 1 2 1 . . 1 1 . 1 2 1 . 1 . Gunslinging . | . . . . . . . . . . . . . . . . . . . . Exploded 2 | . 2 . . 2 . . 2 . . . . . . . . . . . . Melee 1 | . . . . . . . . . . . . 1 . . . . . . . Uniques/NPCs Destroyed . | . . . . . . . . . . . . . . . . . . . . Combat | -11 -10 -10 -9 -9 -9 -8 -8 -7 -6 -5 -4 -4 -4 -4 -4 -3 -2 -2 -1 -------- Run | Scr Mat Min Mat Min Exi Min Mat Fac Fac Fac Fac Ext Cet Arc Hub Res Res Qua Acc Damage Taken 9374 | . 972 . 1185 115 . 21 3210 243 777 581 250 510 . 30 213 325 824 118 . Core 1673 | . 125 . 179 19 . . 380 52 247 152 68 192 . . 32 16 211 . . Absorbed by Shields . | . . . . . . . . . . . . . . . . . . . . Core Remaining (%) 74 | 100 . 50 . . . 50 30 92 70 84 . . . . 74 98 . 69 100 Volleys Fired 431 | . 92 . 136 9 . 2 145 . . 17 23 . . . 7 . . . . Largest 2 | . 2 . 2 2 . 2 2 . . 1 2 . . . 1 . . . . Hottest 118 | . 85 . 88 88 . 88 92 . . 98 118 . . . 98 . . . . Shots Fired 767 | . 181 . 237 16 . 4 278 . . 17 27 . . . 7 . . . . Gun 649 | . 179 . 218 15 . 4 220 . . . 13 . . . . . . . . Cannon 77 | . . . . . . . 49 . . 17 4 . . . 7 . . . . Launcher 8 | . 2 . . 1 . . 5 . . . . . . . . . . . . Special 33 | . . . 19 . . . 4 . . . 10 . . . . . . . . Kinetic 420 | . 90 . 129 9 . 2 190 . . . . . . . . . . . . Thermal 277 | . 89 . 108 6 . 2 34 . . 17 14 . . . 7 . . . . Explosive 4 | . 2 . . . . . 2 . . . . . . . . . . . . Electromagnetic 66 | . . . . 1 . . 52 . . . 13 . . . . . . . . Robot Hit Streak 27 | . 13 . 14 7 . 2 20 . . . 27 . . . . . . . . Robot Miss Streak 8 | . 8 . 7 3 . 7 5 . . . 2 . . . . . . . . Penetration Max 1 | . . . . . . . 1 . . . . . . . . . . . . Secondary Targets 4 | . 2 . 1 . . . 1 . . . . . . . . . . . . Max Gunslinging Chain 1 | . 1 . 1 . . . 1 . . . . . . . . . . . . Shots Hit Robots 627 | . 130 . 181 11 6 2 208 3 . . 25 21 2 19 6 10 1 2 . Core Hits 346 | . 79 . 87 13 . 2 122 1 . . 11 9 . 10 7 3 . 2 . Critical Hits 6 | . 2 . 1 . . . 2 . . . . 1 . . . . . . . Critical Kills 3 | . . . 1 . . . 1 . . . . 1 . . . . . . . Critical Parts Destroyed 3 | . 2 . . . . . 1 . . . . . . . . . . . . Melee Attacks 257 | . . . . 1 6 . 1 14 33 . 9 33 2 20 9 57 30 37 5 Impact . | . . . . . . . . . . . . . . . . . . . . Slashing 248 | . . . . . . . 1 14 33 . 9 33 . 20 9 57 30 37 5 Piercing . | . . . . . . . . . . . . . . . . . . . . Sneak Attacks 36 | . . . . 1 6 . . 1 . . . 8 2 10 1 5 1 1 . Combat Hostiles . | . . . . . . . . . . . . . . . . . . . . Follow-up Attacks . | . . . . . . . . . . . . . . . . . . . . Damage Inflicted 14026 | . 1501 . 1897 127 . 12 4172 173 . . 473 1523 . 2062 830 953 111 192 . Guns 5996 | . 1361 . 1747 80 . 12 2606 . . . 190 . . . . . . . . Cannons 1120 | . . . . . . . 987 . . . 133 . . . . . . . . Explosions 1202 | . 140 . . 47 . . 557 . . . . . . . 458 . . . . Melee 5386 | . . . . . . . . 173 . . . 1523 . 2062 372 953 111 192 . Ramming . | . . . . . . . . . . . . . . . . . . . . Kinetic 3696 | . 473 . 931 35 . 9 2248 . . . . . . . . . . . . Thermal 2654 | . 888 . 966 45 . 3 469 . . . 283 . . . . . . . . Explosive 397 | . 140 . . . . . 257 . . . . . . . . . . . . Electromagnetic 1893 | . . . . 47 . . 1198 . . . 190 . . . 458 . . . . Impact . | . . . . . . . . . . . . . . . . . . . . Slashing 5386 | . . . . . . . . 173 . . . 1523 . 2062 372 953 111 192 . Piercing . | . . . . . . . . . . . . . . . . . . . . Highest Corruption 9 | . 1 1 1 1 1 1 . . 1 9 . 1 1 1 2 . . . . Average Corruption 1 | . 1 1 1 1 1 1 . . 1 2 . 1 1 1 1 . . . . Corruption Purged . | . . . . . . . . . . . . . . . . . . . . Effects 26 | . 7 3 2 2 3 1 . . . 5 . 1 . 1 1 . . . . Message Errors 12 | . 3 2 1 1 3 1 . . . . . . . . 1 . . . . Heat Flow Errors 2 | . . . . . . . . . . 2 . . . . . . . . . Energy Discharges 8 | . 3 1 . . . . . . . 3 . 1 . . . . . . . Data Loss (minor) 3 | . 1 . . 1 . . . . . . . . . 1 . . . . . Targeting Errors 1 | . . . 1 . . . . . . . . . . . . . . . . Overload Shots . | . . . . . . . . . . . . . . . . . . . . Overflow Damage 1279 | . . . . . . . 30 . . . . 88 . 700 91 370 . . . Projectiles 15 | . . . . . . . 15 . . . . . . . . . . . . Explosions 106 | . . . . . . . 15 . . . . . . . 91 . . . . Melee 1158 | . . . . . . . . . . . . 88 . 700 . 370 . . . Knockbacks . | . . . . . . . . . . . . . . . . . . . . Impact . | . . . . . . . . . . . . . . . . . . . . Kinetic . | . . . . . . . . . . . . . . . . . . . . Secondary . | . . . . . . . . . . . . . . . . . . . . Self-Inflicted Damage 337 | . 43 . . . . . 101 . . . . . . . 193 . . . . Shots 5 | . 1 . . . . . 2 . . . . . . . 2 . . . . Rammed . | . . . . . . . . . . . . . . . . . . . . Targets Rammed . | . . . . . . . . . . . . . . . . . . . . Kicked . | . . . . . . . . . . . . . . . . . . . . Crushed . | . . . . . . . . . . . . . . . . . . . . Highest Temperature 313 | . 313 . 270 84 . 42 160 . . 198 4 . . . 120 . . . 91 Average Temperature 68 | . 74 . 89 36 . 21 40 . . 42 3 . . . 47 . . . 38 Received Heat Transfer 2712 | . 444 . 387 . . . 1431 36 186 27 18 72 . 9 . 66 18 18 . Effects 7 | . 2 . 5 . . . . . . . . . . . . . . . . Shutdowns 1 | . 1 . . . . . . . . . . . . . . . . . . Energy Bleed 3 | . 1 . 2 . . . . . . . . . . . . . . . . Interference 3 | . . . 3 . . . . . . . . . . . . . . . . Siege Activations . | . . . . . . . . . . . . . . . . . . . . Robots Corrupted 6 | . . . . . . . 3 . . . . . . . 3 . . . . Combat Hostiles 3 | . . . . . . . 3 . . . . . . . . . . . . Parts Fried 19 | . . . . . . . 6 . . . 1 . . . 12 . . . . Impact Corruptions . | . . . . . . . . . . . . . . . . . . . . Robots Melted . | . . . . . . . . . . . . . . . . . . . . Combat Hostiles . | . . . . . . . . . . . . . . . . . . . . Parts Melted 10 | . 1 . 2 . . . . . . . 7 . . . . . . . . Heat Transferred 4471 | . 1547 . 1657 55 . 5 674 . . . 533 . . . . . . . . Parts Sabotaged . | . . . . . . . . . . . . . . . . . . . . Parts Stolen . | . . . . . . . . . . . . . . . . . . . . Parts Stripped . | . . . . . . . . . . . . . . . . . . . . Power Chain Reactions 4 | . . . . 2 . . 2 . . . . . . . . . . . . Missiles Intercepted . | . . . . . . . . . . . . . . . . . . . . Alert | -11 -10 -10 -9 -9 -9 -8 -8 -7 -6 -5 -4 -4 -4 -4 -4 -3 -2 -2 -1 ------- Run | Scr Mat Min Mat Min Exi Min Mat Fac Fac Fac Fac Ext Cet Arc Hub Res Res Qua Acc Peak Influence 1035 | . 307 74 192 195 . 32 481 188 586 404 404 229 364 385 1035 543 416 267 87 Average Influence 162 | . 150 74 83 123 . 31 206 123 334 266 139 87 300 323 398 142 329 81 43 Maximum Alert Level 3 | . 1 . . . . . 2 . 2 2 2 1 1 1 3 2 2 1 . Low Security (%) 69 | 100 67 100 100 100 . 100 50 100 53 . 89 89 22 8 13 76 . 91 100 Level 1 25 | . 32 . . . . . 41 . . 95 3 10 77 91 47 . 84 8 . Level 2 5 | . . . . . . . 7 . 46 4 6 . . . 22 23 15 . . Level 3 . | . . . . . . . . . . . . . . . 16 . . . . Level 4 . | . . . . . . . . . . . . . . . . . . . . Level 5 . | . . . . . . . . . . . . . . . . . . . . High Security . | . . . . . . . . . . . . . . . . . . . . Max Security . | . . . . . . . . . . . . . . . . . . . . Squads Dispatched 29 | . 6 . 6 . . . 6 . 2 2 1 . . . . 3 1 2 . Investigation 12 | . 3 . 3 . . . 3 . . 1 1 . . . . 1 . . . Extermination 4 | . . . . . . . . . . 1 . . . . . 2 . 1 . Reinforcement 10 | . 3 . 3 . . . 2 . . . . . . . . . 1 1 . Assault 2 | . . . . . . . . . 2 . . . . . . . . . . Garrison 1 | . . . . . . . 1 . . . . . . . . . . . . Intercept . | . . . . . . . . . . . . . . . . . . . . Construction Impeded . | . . . . . . . . . . . . . . . . . . . . Haulers Reinforced . | . . . . . . . . . . . . . . . . . . . . Stealth | -11 -10 -10 -9 -9 -9 -8 -8 -7 -6 -5 -4 -4 -4 -4 -4 -3 -2 -2 -1 --------- Run | Scr Mat Min Mat Min Exi Min Mat Fac Fac Fac Fac Ext Cet Arc Hub Res Res Qua Acc Distress Signals 20 | . 2 . 2 . . . 5 1 1 1 3 . 1 . 1 . 2 1 . Communications Jammed . | . . . . . . . . . . . . . . . . . . . . Distress Signals . | . . . . . . . . . . . . . . . . . . . . Times Spotted 367 | . 48 . 48 14 . 1 72 12 17 21 16 19 13 9 8 25 24 16 4 Peak Tracking Total 14 | . 4 . 5 4 . 1 7 5 10 10 11 8 5 2 4 10 14 4 5 Tactical Retreats 46 | . 4 . 1 . . . 7 4 4 6 2 4 . . 1 7 5 . 1 Traps | -11 -10 -10 -9 -9 -9 -8 -8 -7 -6 -5 -4 -4 -4 -4 -4 -3 -2 -2 -1 ------- Run | Scr Mat Min Mat Min Exi Min Mat Fac Fac Fac Fac Ext Cet Arc Hub Res Res Qua Acc Traps Triggered 15 | . . . 3 . . . 4 . 1 3 1 2 . . . . . 1 . Indirectly 2 | . . . . . . . 2 . . . . . . . . . . . . Trap Hack Attempts . | . . . . . . . . . . . . . . . . . . . . Triggered . | . . . . . . . . . . . . . . . . . . . . Disarmed . | . . . . . . . . . . . . . . . . . . . . Reprogrammed . | . . . . . . . . . . . . . . . . . . . . Reused . | . . . . . . . . . . . . . . . . . . . . Traps Extracted . | . . . . . . . . . . . . . . . . . . . . Installed . | . . . . . . . . . . . . . . . . . . . . Triggered 2 | . . . . . . . 2 . . . . . . . . . . . . Machines | -11 -10 -10 -9 -9 -9 -8 -8 -7 -6 -5 -4 -4 -4 -4 -4 -3 -2 -2 -1 ---------- Run | Scr Mat Min Mat Min Exi Min Mat Fac Fac Fac Fac Ext Cet Arc Hub Res Res Qua Acc Machines Disabled 27 | . 1 . 2 1 . . 3 1 1 . . . 2 . 13 . . 3 . Max in Single Turn 11 | . 1 . 1 . . . 1 1 1 . . . . . 11 . . 1 . Garrison Access 6 | . . . . . . . 1 2 1 . . . . . 1 . . 1 . Network Hub 2 | . . . . . . . . . . . . . . . 2 . . . . Machines Sabotaged . | . . . . . . . . . . . . . . . . . . . . Garrisons Compromised . | . . . . . . . . . . . . . . . . . . . . Overloaded Fab Kills . | . . . . . . . . . . . . . . . . . . . . Fab Network Shutdowns 3 | . . . . . . . . . 1 . 1 . . . . 1 . . . Hacking | -11 -10 -10 -9 -9 -9 -8 -8 -7 -6 -5 -4 -4 -4 -4 -4 -3 -2 -2 -1 --------- Run | Scr Mat Min Mat Min Exi Min Mat Fac Fac Fac Fac Ext Cet Arc Hub Res Res Qua Acc Machines Accessed 104 | . 6 . 5 . 1 . 12 4 9 11 6 18 2 . 2 10 4 11 3 Terminals 69 | . 4 . 3 . . . 9 1 5 5 4 16 2 . 1 6 2 8 3 Fabricators 8 | . . . . . . . . . 1 3 1 . . . . 2 1 . . Repair Stations . | . . . . . . . . . . . . . . . . . . . . Recycling Units 14 | . 2 . 1 . . . 1 1 1 3 1 2 . . . 1 1 . . Scanalyzers 6 | . . . 1 . . . 1 . 1 . . . . . . 1 . 2 . Garrison Access 6 | . . . . . . . 1 2 1 . . . . . 1 . . 1 . Total Hacks 353 | . 13 . 13 . 1 . 37 7 25 38 29 54 5 . 6 64 6 46 9 Successful 274 | . 10 . 8 . 1 . 20 3 16 25 18 52 5 . 6 50 5 46 9 Failed 77 | . 3 . 5 . . . 17 4 9 12 11 2 . . . 13 1 . . Catastrophic 2 | . . . . . . . 1 . . 1 . . . . . . . . . Database Lockouts 2 | . . . . . . . . . . 1 . . . . . 1 . . . Manual 154 | . 6 . 5 . . . 14 2 9 16 12 25 1 . 1 34 2 21 6 Terminals 279 | . 9 . 8 . . . 31 2 16 27 20 52 5 . 5 52 3 40 9 Fabricators 28 | . . . . . . . . . 2 7 8 . . . . 9 2 . . Repair Stations . | . . . . . . . . . . . . . . . . . . . . Recycling Units 21 | . 4 . 2 . . . 3 1 2 4 1 2 . . . 1 1 . . Scanalyzers 16 | . . . 3 . . . 2 . 4 . . . . . . 2 . 5 . Garrison Access 8 | . . . . . . . 1 4 1 . . . . . 1 . . 1 . Terminal Hacks 144 | . 3 . 2 . 1 . 9 . 5 12 10 30 5 . 4 29 2 26 6 Record 6 | . . . . . 1 . . . . . . . 4 . . . . 1 . Part Schematic 11 | . . . . . . . . . . 2 4 3 . . . 1 . 1 . Robot Analysis 4 | . . . 1 . . . 1 . . . . . . . . 1 . 1 . Prototype ID Bank 12 | . . . . . . . . . . 1 1 2 . . 1 4 . 3 . Open Door 14 | . . . . . . . . . . . . 11 1 . . . 1 . 1 Level Access Points 5 | . . . . . . . . . . 1 . 1 . . . 1 . 1 1 Branch Access Points 2 | . . . . . . . . . . . . . . . . 1 1 . . Emergency Access Points 2 | . . . . . . . . . . . . . . . 1 1 . . . Machine Index 4 | . . . . . . . . . 1 1 . . . . . 1 . 1 . Terminal Index 10 | . 1 . 1 . . . 1 . 1 1 . 1 . . 1 1 . 1 1 Fabricator Index 1 | . . . . . . . . . . . . . . . . . . . 1 Scanalyzer Index 1 | . . . . . . . . . . . . . . . . . . 1 . Alert Level 1 | . . . . . . . . . . . . . . . . 1 . . . Unreport Threat 17 | . . . . . . . 2 . . . 3 3 . . . 6 . 3 . Locate Traps 16 | . 1 . . . . . 2 . 1 3 1 2 . . . 2 . 3 1 Recall Investigation 1 | . . . . . . . . . . . . . . . . 1 . . . Recall Extermination 3 | . . . . . . . . . . . . . . . . 2 . 1 . Hauler Manifests 2 | . . . . . . . 1 . . . . 1 . . . . . . . Registered Components 5 | . . . . . . . . . 1 1 . 1 . . . 1 . 1 . Registered Prototypes 3 | . . . . . . . 1 . . . . . . . . 1 . 1 . Zone Layout 24 | . 1 . . . . . 1 . 1 2 1 5 . . 1 4 . 7 1 Fabricator Hacks 24 | . . . . . . . . . 2 7 5 . . . . 8 2 . . Load Schematic 10 | . . . . . . . . . 1 3 2 . . . . 3 1 . . Build 14 | . . . . . . . . . 1 4 3 . . . . 5 1 . . Repair Station Hacks . | . . . . . . . . . . . . . . . . . . . . Recycling Unit Hacks 15 | . 2 . . . . . 2 1 2 3 1 2 . . . 1 1 . . Report Inventory 13 | . 2 . . . . . 1 1 1 3 1 2 . . . 1 1 . . Retrieve Matter 1 | . . . . . . . 1 . . . . . . . . . . . . Retrieve Components 1 | . . . . . . . . . 1 . . . . . . . . . . Scanalyzer 16 | . . . 3 . . . 2 . 4 . . . . . . 2 . 5 . Insert Component 11 | . . . 2 . . . 1 . 2 . . . . . . 1 . 5 . Analyze 5 | . . . 1 . . . 1 . 2 . . . . . . 1 . . . Garrison Access Hacks 6 | . . . . . . . 1 2 1 . . . . . 1 . . 1 . Seal Access 6 | . . . . . . . 1 2 1 . . . . . 1 . . 1 . Unauthorized Hacks 69 | . 5 . 3 . . . 6 . 2 3 2 20 . . 1 10 . 14 3 Terminals 64 | . 3 . 3 . . . 5 . 2 3 1 20 . . 1 9 . 14 3 Track 20 | . 1 . 1 . . . 2 . . 1 . 8 . . 1 . . 5 1 Assimilate 6 | . . . . . . . . . . . . . . . . 4 . 1 1 Botnet 32 | . 1 . 1 . . . 2 . 2 2 . 12 . . . 4 . 7 1 Disrupt 1 | . . . . . . . . . . . 1 . . . . . . . . Operators 5 | . 1 . 1 . . . 1 . . . . . . . . 1 . 1 . Fabricators 2 | . . . . . . . . . . . 1 . . . . 1 . . . Siphon 2 | . . . . . . . . . . . 1 . . . . 1 . . . Repair Stations . | . . . . . . . . . . . . . . . . . . . . Recycling Units 3 | . 2 . . . . . 1 . . . . . . . . . . . . Tunnel 3 | . 2 . . . . . 1 . . . . . . . . . . . . Scanalyzers . | . . . . . . . . . . . . . . . . . . . . Garrison Access . | . . . . . . . . . . . . . . . . . . . . Data Cores Recovered . | . . . . . . . . . . . . . . . . . . . . Used . | . . . . . . . . . . . . . . . . . . . . Hacking Detections 65 | . 4 . 4 . . . 10 2 8 8 5 7 2 . 1 7 1 4 2 Full Trace Events 4 | . 1 . 1 . . . 1 . . . 1 . . . . . . . . Feedback Events . | . . . . . . . . . . . . . . . . . . . . Feedback Blocked . | . . . . . . . . . . . . . . . . . . . . Robot Schematics Acquired . | . . . . . . . . . . . . . . . . . . . . Robots Built . | . . . . . . . . . . . . . . . . . . . . Matter . | . . . . . . . . . . . . . . . . . . . . Time . | . . . . . . . . . . . . . . . . . . . . Total Robot Build Rating . | . . . . . . . . . . . . . . . . . . . . Part Schematics Acquired 16 | . . . 1 . . . 1 . 2 2 4 3 . . . 2 . 1 . Parts Built 15 | . . . . . . . . . 1 5 4 . . . . 4 1 . . Matter 2370 | . . . . . . . . . 219 716 360 . . . . 907 168 . . Time 713 | . . . . . . . . . 58 250 119 . . . . 202 84 . . Total Part Build Rating 71 | . . . . . . . . . 3 25 16 . . . . 23 4 . . Parts Repaired . | . . . . . . . . . . . . . . . . . . . . Time . | . . . . . . . . . . . . . . . . . . . . Parts Recycled . | . . . . . . . . . . . . . . . . . . . . Recycled Matter . | . . . . . . . . . . . . . . . . . . . . Retrieved Matter . | . . . . . . . . . . . . . . . . . . . . Retrieved Components 3 | . . . . . . . . . 3 . . . . . . . . . . Parts Scanalyzed 5 | . . . 1 . . . 1 . 2 . . . . . . 1 . . . Part Schematics Acquired 5 | . . . 1 . . . 1 . 2 . . . . . . 1 . . . Parts Damaged . | . . . . . . . . . . . . . . . . . . . . Bothacking | -11 -10 -10 -9 -9 -9 -8 -8 -7 -6 -5 -4 -4 -4 -4 -4 -3 -2 -2 -1 ------------ Run | Scr Mat Min Mat Min Exi Min Mat Fac Fac Fac Fac Ext Cet Arc Hub Res Res Qua Acc Used RIF Installer . | . . . . . . . . . . . . . . . . . . . . Robots Hacked 8 | . . . . 1 5 . . . . . . . 2 . . . . . . Non-combat 3 | . . . . . 3 . . . . . . . . . . . . . . Combat 5 | . . . . 1 2 . . . . . . . 2 . . . . . . Robot Hacks Applied 8 | . . . . 1 5 . . . . . . . 2 . . . . . . parse_system 8 | . . . . 1 5 . . . . . . . 2 . . . . . . Relay Couplers Released . | . . . . . . . . . . . . . . . . . . . . Robots Rewired 9 | . . . . . . . . . . . 1 8 . . . . . . . Allies Hacked 1 | . . . . . . . . . . . . 1 . . . . . . . Hacks Repelled 1 | . . . . . . . . . . . . 1 . . . . . . . Allies | -11 -10 -10 -9 -9 -9 -8 -8 -7 -6 -5 -4 -4 -4 -4 -4 -3 -2 -2 -1 -------- Run | Scr Mat Min Mat Min Exi Min Mat Fac Fac Fac Fac Ext Cet Arc Hub Res Res Qua Acc Total Allies 36 | . . . . 3 . . . . . . 1 23 5 . . 3 . 1 . Largest Group 10 | . . . . 3 1 1 . . . . 1 10 10 9 6 1 . 1 . Highest-Rated Group 761 | . . . . 40 16 16 . . . . 48 540 761 761 516 26 . 44 . Highest-Rated Ally 156 | . . . . 16 16 16 . . . . 48 156 156 150 94 26 . 44 . Total Orders . | . . . . . . . . . . . . . . . . . . . . Ally Attacks 228 | . . . . 19 . 3 . . . . . 75 77 23 31 . . . . Total Damage 6479 | . . . . 184 . 36 . . . . . 2159 1980 919 1201 . . . . Kills 39 | . . . . 6 . . . . . . . 10 11 4 8 . . . . Allies Corrupted 4 | . . . . . . . . . . . . 1 . . 3 . . . . Allies Melted 1 | . . . . . . . . . . . . . 1 . . . . . . Intel | -11 -10 -10 -9 -9 -9 -8 -8 -7 -6 -5 -4 -4 -4 -4 -4 -3 -2 -2 -1 ------- Run | Scr Mat Min Mat Min Exi Min Mat Fac Fac Fac Fac Ext Cet Arc Hub Res Res Qua Acc Robot Analysis Total 4 | . . . 1 . . . 1 . . . . . . . . 1 . 1 . Derelict Logs Recovered 2 | . . . . 2 . . . . . . . . . . . . . . . Drone Launches . | . . . . . . . . . . . . . . . . . . . . Drone Recoveries . | . . . . . . . . . . . . . . . . . . . . Exploration | -11 -10 -10 -9 -9 -9 -8 -8 -7 -6 -5 -4 -4 -4 -4 -4 -3 -2 -2 -1 ------------- Run | Scr Mat Min Mat Min Exi Min Mat Fac Fac Fac Fac Ext Cet Arc Hub Res Res Qua Acc Turns Passed 13948 | 3 1976 175 2376 763 786 184 3042 324 383 525 448 759 265 175 174 648 386 455 101 Spaces Moved 10612 | 1 868 93 967 302 368 85 1204 503 529 911 519 939 169 210 257 807 677 1002 201 Core . | . . . . . . . . . . . . . . . . . . . . Treads 512 | 1 497 . . . . . 14 . . . . . . . . . . . . Legs 3380 | . 371 93 967 302 368 85 1190 4 . . . . . . . . . . . Wheels . | . . . . . . . . . . . . . . . . . . . . Hover 1251 | . . . . . . . . 499 529 223 . . . . . . . . . Flight 5469 | . . . . . . . . . . 688 519 939 169 210 257 807 677 1002 201 Fastest Speed 11 | 160 160 180 180 210 210 210 180 48 45 34 34 37 37 37 37 24 24 24 11 Average Speed 92 | 160 178 180 186 222 210 210 192 49 48 39 34 40 37 37 37 33 24 24 15 Slowest Speed 270 | 160 180 180 210 240 210 210 270 183 110 120 106 120 37 37 37 37 24 24 24 Overloaded Moves 7 | . . . . . . . . . . . . . . . . . . . 7 Propulsion Burnouts . | . . . . . . . . . . . . . . . . . . . . Robots Hopped 55 | . . . . . . . . . . 1 14 13 . . 3 5 17 1 1 Cave-ins Triggered 1 | . . . . . . . . . . 1 . . . . . . . . . Teleports 3 | . . . . . . . . . . . . . . . . . . 3 . Exploration Rate (%) 47 | 2 98 24 66 74 84 29 91 20 20 25 13 84 70 90 31 26 27 71 9 Regions Visited 19 Branch Regions 9 Pre-discovered Areas 5 | . 2 . . 1 1 . 1 . . . . . . . . . . . . Known Exits Taken 12 | . . . . . . . 1 1 1 1 1 1 1 1 1 1 1 1 . Unknown Exits Taken 7 | 1 1 1 1 1 1 1 . . . . . . . . . . . . . Scrap Searched 3 | . . 1 . 1 . 1 . . . . . . . . . . . . . Spaces Dug 173 | . . . . . . . 1 7 27 17 7 3 . . 2 47 29 28 5 Terrain Destroyed 573 | . 15 . . 8 . . 26 7 27 17 7 3 . . 354 47 29 28 5 Melee 154 | . . . . . . . 1 7 27 . 7 3 . . . 47 29 28 5 Projectile 21 | . . . . . . . 1 . . 17 . . . . 3 . . . . AOE 398 | . 15 . . 8 . . 24 . . . . . . . 351 . . . . Actions | -11 -10 -10 -9 -9 -9 -8 -8 -7 -6 -5 -4 -4 -4 -4 -4 -3 -2 -2 -1 --------- Run | Scr Mat Min Mat Min Exi Min Mat Fac Fac Fac Fac Ext Cet Arc Hub Res Res Qua Acc Total 13526 | 2 1123 101 1294 373 375 88 1639 568 607 1066 723 1254 369 277 312 1096 837 1161 261 Wait 1716 | . 111 9 147 51 . . 174 14 31 81 157 215 191 30 38 203 140 83 41 Move 10493 | . 867 92 966 301 367 84 1203 502 528 908 493 915 168 209 251 797 645 999 198 Hop 44 | . . . . . . . . . . 1 11 10 . . 2 4 14 1 1 Pick Up 181 | . 27 . 24 3 . 1 45 3 5 12 5 11 1 7 . 15 2 16 4 Fast Attach 34 | . 2 . . . . . 7 . . 7 5 4 1 . 1 . 1 6 . Attach 127 | . 6 . 11 2 . . 25 12 7 19 8 8 1 1 2 11 3 4 7 Detach 22 | . . . . . . . . 1 . 10 6 2 1 . 1 1 . . . Swap 56 | 2 6 . 5 5 2 . 20 2 1 . . 1 2 4 . 1 1 2 2 Drop 109 | . 12 . 5 1 . 1 19 20 2 11 3 2 2 6 1 7 1 13 3 Fire 431 | . 92 . 136 9 . 2 145 . . 17 23 . . . 7 . . . . Melee 257 | . . . . 1 6 . 1 14 33 . 9 33 2 20 9 57 30 37 5 Ram . | . . . . . . . . . . . . . . . . . . . . Kick . | . . . . . . . . . . . . . . . . . . . . Crush . | . . . . . . . . . . . . . . . . . . . . Escape Stasis 36 | . . . . . . . . . . . . 36 . . . . . . . Rewire 20 | . . . . . . . . . . . 3 17 . . . . . . . Trap . | . . . . . . . . . . . . . . . . . . . . Miscellaneous . | . . . . . . . . . . . . . . . . . . . . Route ------- -11/Scrapyard -10/Materials (discovered 4 exits: *Mat x3 / [*Min]) -10/Mines -9/Materials (discovered 5 exits: *Mat / [*Min x2] / [*Sto x2]) -9/Mines (discovered 3 exits: *Mat x2 / *Exi) -9/Exiles -8/Mines -8/Materials (discovered 2 exits: *Fac x2) -7/Factory (discovered 2 exits: *Fac / *Low) -6/Factory -5/Factory (discovered 4 exits: *Fac x4) -4/Factory (discovered 2 exits: *Res / *Ext) -4/Extension (discovered 3 exits: *Res x2 / *Cet) -4/Cetus -4/Archives (discovered 3 exits: *Res / *Hub x2) -4/Hub_04(d) -3/Research (discovered 6 exits: *Res x3 / *Arm / Tes x2) -2/Research (discovered 2 exits: *Qua x2) -2/Quarantine -1/Access To Fleet Rendezvous History --------- Turn | Location | Event 4 | -11/Scrapyard | Discovered new exit (range 0) 4 | -11/Scrapyard | Entered Materials 287 | -10/Materials | Discovered new exit (range 4) 315 | -10/Materials | Build established: Mutant 345 | -10/Materials | Discovered new exit (range 13) 473 | -10/Materials | Discovered new exit (range 16) 1194 | -10/Materials | Discovered new exit (range 7) 1507 | -10/Materials | Build established: Scavenger-Mutant 1980 | -10/Materials | Entered Mines 2047 | -10/Mines | Discovered new exit (range 5) 2155 | -10/Mines | Entered Materials 2155 | -9/Materials | Evolved 2 slots: Propulsion x1, Utility x1 2210 | -9/Materials | Discovered new exit (range 6) 2306 | -9/Materials | Met 8R-AWN 2348 | -9/Materials | Discovered new exit (range 16) 2460 | -9/Materials | Build established: Hauler-Mutant 2482 | -9/Materials | Discovered new exit (range 8) 2603 | -9/Materials | Discovered new exit (range 15) 2734 | -9/Materials | Discovered new exit (range 15) 4120 | -9/Materials | Lost 3 parts (1p2n) 4531 | -9/Materials | Entered Mines 4533 | -9/Mines | Followed 8R-AWN into the Mines 4576 | -9/Mines | Discovered new exit (range 6) 4761 | -9/Mines | Discovered new exit (range 8) 4779 | -9/Mines | Assisted by bots powering up and referring to "LRC-V3" 4990 | -9/Mines | Learned Materials non-interactive machine intel 5228 | -9/Mines | Learned location of Recycling (-9) 5285 | -9/Mines | Discovered new exit (range 5) 5294 | -9/Mines | Entered Exiles 5294 | -9/Exiles | Accompanied by 1 ally 5347 | -9/Exiles | Welcomed by 8R-AWN 5385 | -9/Exiles | Met EX-HEX 5499 | -9/Exiles | Met EX-BIN 5579 | -9/Exiles | Met EX-DEC 5598 | -9/Exiles | Learned location of Zion (-6) 5702 | -9/Exiles | Visited The Gauntlet 6053 | -9/Exiles | Discovered new exit (range 14) 6080 | -9/Exiles | Entered Mines 6080 | -8/Mines | Accompanied by 1 ally 6235 | -8/Mines | Discovered new exit (range 14) 6264 | -8/Mines | Entered Materials 6264 | -8/Materials | Evolved 2 slots: Utility x2 6265 | -8/Materials | Loaded intel: 37 non-interactive machine locations 6355 | -8/Materials | Garrison activated, responded to threat 6378 | -8/Materials | Lost 3 parts (3n) 6878 | -8/Materials | Lost 4 parts (3n1w) 7290 | -8/Materials | Lost 5 parts (2p1n2w) 7382 | -8/Materials | Discovered new exit (range 7) 7723 | -8/Materials | Core integrity fell below 50% 7786 | -8/Materials | Lost 5 parts (3n2w) 8204 | -8/Materials | Discovered new exit (range 10) 9306 | -8/Materials | Identified exit to Factory 9306 | -8/Materials | Entered Factory 9306 | -7/Factory | Evolved 2 slots: Utility x2 9535 | -7/Factory | Discovered new exit (range 7) 9538 | -7/Factory | Identified exit to Factory 9580 | -7/Factory | Discovered new exit (range 5) 9581 | -7/Factory | Identified exit to Lower Caves 9622 | -7/Factory | Build established: Hacker-Mutant 9630 | -7/Factory | Entered another Factory area 9630 | -6/Factory | Evolved 2 slots: Utility x2 9824 | -6/Factory | Lost 3 parts (1p2n) 9834 | -6/Factory | Local fabrication network quarantined 9851 | -6/Factory | Fabricated Aerolev Unit? 9980 | -6/Factory | First assault squad dispatched 10011 | -6/Factory | Discovered new exit (range 4) 10013 | -6/Factory | Identified exit to Factory 10013 | -6/Factory | Entered another Factory area 10013 | -5/Factory | Evolved 2 slots: Utility x2 10034 | -5/Factory | Lost 8 parts (3n4u1w) 10262 | -5/Factory | Identified exit to Factory 10331 | -5/Factory | Fabricated Field Propulsion Array? 10356 | -5/Factory | Build established: Hacker-Scout 10384 | -5/Factory | Fabricated Hacking Suite? 10416 | -5/Factory | Central database locked down 10421 | -5/Factory | Fabricated Lrn. Sensor Array? 10522 | -5/Factory | Fabricated Lrn. Sensor Array (x1) 10535 | -5/Factory | Crushed by falling debris 10538 | -5/Factory | Entered another Factory area 10538 | -4/Factory | Evolved 2 slots: Utility x2 10718 | -4/Factory | Discovered new exit (range 15) 10779 | -4/Factory | Fabricated Power Sword (x2) 10824 | -4/Factory | Fabricated Hacking Suite (x1) 10863 | -4/Factory | Fabricated Hacking Suite (x1) 10940 | -4/Factory | Local fabrication network quarantined 10945 | -4/Factory | Discovered new exit (range 15) 10985 | -4/Factory | Identified exit to Extension 10986 | -4/Factory | Entered Extension 11007 | -4/Extension | Rescued a captive Derelict 11014 | -4/Extension | Lost 3 parts (1n1u1w) 11085 | -4/Extension | Rescued a captive Derelict 11102 | -4/Extension | Rescued a captive Derelict 11104 | -4/Extension | Rescued a captive Derelict 11180 | -4/Extension | Identified exit to Research 11386 | -4/Extension | Disrupted transfer network 11454 | -4/Extension | Spotted B-86 Titan 11456 | -4/Extension | Spotted B-86 Titan 11516 | -4/Extension | Rescued a captive Derelict 11517 | -4/Extension | Build established: Wizard-Mutant 11522 | -4/Extension | Lost 4 parts (1p1n2u) 11555 | -4/Extension | Rescued a captive Derelict 11570 | -4/Extension | Rescued a captive Derelict 11571 | -4/Extension | Rescued a captive Derelict 11574 | -4/Extension | Rescued a captive Derelict 11574 | -4/Extension | Rescued a captive Derelict 11575 | -4/Extension | Rescued A7 11630 | -4/Extension | Rescued a captive Derelict 11637 | -4/Extension | Rescued a captive Derelict 11653 | -4/Extension | Rescued a captive Derelict 11653 | -4/Extension | Rescued a captive Derelict 11678 | -4/Extension | Discovered new exit (range 6) 11716 | -4/Extension | Identified exit to Cetus 11745 | -4/Extension | Entered Cetus 11745 | -4/Cetus | Accompanied by 10 allies 11750 | -4/Cetus | Acquired a Cetus Manufacturing Module code from A7 11765 | -4/Cetus | Spotted Cetus Guard 11765 | -4/Cetus | Spotted Cetus Guard 11767 | -4/Cetus | Spotted Cetus Guard 11767 | -4/Cetus | Spotted Cetus Guard 11781 | -4/Cetus | Allies destroyed Cetus Guard 11784 | -4/Cetus | Allies destroyed Cetus Guard 11787 | -4/Cetus | Allies destroyed Cetus Guard 11834 | -4/Cetus | Started Cetus Manufacturing Module 11859 | -4/Cetus | Manufactured an Enhanced Grunt 11869 | -4/Cetus | Escorted A7 to Cetus Mainframe 11884 | -4/Cetus | Manufactured an Enhanced Grunt 11909 | -4/Cetus | Manufactured an Enhanced Grunt 11934 | -4/Cetus | Manufactured an Enhanced Grunt 11959 | -4/Cetus | Manufactured an Enhanced Grunt 11976 | -4/Cetus | Discovered new exit (range 15) 11995 | -4/Cetus | Identified exit to Archives 12010 | -4/Cetus | Entered Archives 12010 | -4/Archives | Accompanied by 9 allies 12015 | -4/Archives | Received a hacking code to weaken MAIN.C 12041 | -4/Archives | Discovered exit to Research (range 15) 12044 | -4/Archives | Unable to access archive contents 12046 | -4/Archives | Discovered new exit (range 15) 12097 | -4/Archives | Discovered new exit (range 16) 12167 | -4/Archives | Identified exit to Hub_04(d) 12185 | -4/Archives | Entered Hub_04(d) 12185 | -4/Hub_04(d) | Accompanied by 6 allies 12247 | -4/Hub_04(d) | Discovered exit to Research (range 4) 12331 | -4/Hub_04(d) | Network Hub disabled 12341 | -4/Hub_04(d) | Spotted Lightning 12341 | -4/Hub_04(d) | Spotted Lightning 12341 | -4/Hub_04(d) | Spotted Lightning 12351 | -4/Hub_04(d) | Network Hub disabled 12359 | -4/Hub_04(d) | Entered Research 12359 | -3/Research | Evolved 2 slots: Propulsion x1, Utility x1 12372 | -3/Research | Identified exit to Armory 12372 | -3/Research | Identified exit to Testing 12382 | -3/Research | Lost 4 parts (1n2u1w) 12424 | -3/Research | Spotted B-86 Titan 12462 | -3/Research | Fabricated Lrn. Sensor Array? 12486 | -3/Research | Identified exit to Research 12638 | -3/Research | Fabricated Exp. Hacking Suite (x1) 12697 | -3/Research | Fabricated Exp. Cesium-ion Thruster? 12784 | -3/Research | Fabricated Exp. Cesium-ion Thruster? 12867 | -3/Research | Local fabrication network quarantined 12907 | -3/Research | Central database locked down 13007 | -3/Research | Entered another Research area 13007 | -2/Research | Evolved 2 slots: Utility x2 13120 | -2/Research | Found Prototype Device 13121 | -2/Research | Fabricated Lrn. Sensor Array? 13143 | -2/Research | Identified EM Disruption Field 13204 | -2/Research | Build established: Wizard-Sprinter 13331 | -2/Research | Identified exit to Quarantine 13393 | -2/Research | Entered Quarantine 13394 | -2/Quarantine | Identified exit to Access 13395 | -2/Quarantine | Found Alien Artifact 13399 | -2/Quarantine | Found Alien Artifact 13444 | -2/Quarantine | Found Alien Artifact 13569 | -2/Quarantine | Identified Transdimensional Reconstructor (x2) 13569 | -2/Quarantine | Identified Subatomic Replicator 13574 | -2/Quarantine | Cryocooling Duct disabled 13589 | -2/Quarantine | Ambient heat levels rising (+20) 13589 | -2/Quarantine | Non-combat units ordered to evacuate 13690 | -2/Quarantine | Found Alien Artifact 13695 | -2/Quarantine | Identified Core Reset Matrix 13695 | -2/Quarantine | Used Core Reset Matrix 13699 | -2/Quarantine | Detected hypermatrix surge 13699 | -2/Quarantine | Sensed 15 artifacts in vicinity 13785 | -2/Quarantine | Found Hpw. Transdimensional Reconstructor 13785 | -2/Quarantine | Warped through subspace 13791 | -2/Quarantine | Warped through subspace 13799 | -2/Quarantine | Warped through subspace 13844 | -2/Quarantine | Discovered exit to Access (range 11) 13848 | -2/Quarantine | Entered Access 13848 | -1/Access | Evolved 2 slots: Propulsion x2 13850 | -1/Access | Used Subatomic Replicator to replicate Exp. Cesium-ion Thruster 13918 | -1/Access | Identified exit to Surface 13949 | *** | Heading to fleet! Last Messages --------------- Testing... Tracking enabled and active. 13936_ Connecting with Terminal... >>Traps(Locate) Found 3 traps in 2 arrays: 1x Stasis Trap 2x Hellfire Trap Map updated. >>Layout(Zone) Retrieving Zone 7W layout... Downloaded map data. 13947_ Connecting with Terminal... >>Open Sealed Barrier opened. 13948_ Connecting with Terminal... >>Index(Fabricators) Found 4 fabricators. Downloaded coordinate data. 13948_ The Access Shell folds into the floor. [Achievement: Home At Last?] Map ----- +----------------------------------------------------+ | ????????????????????????? #???# #??# #? | | ????????????????????????? #???# #??# #? | | ????????????????????????? #???########??# #? | | ????????????????????????? ############### #? | | ????????????????????????? # #? | | ????????????????????????? # ^ #? | | ????????????????????????? # #####+########## | | ????????????????????????? / ## ##### | | ????????????????????????? #o ## ## # | | ????????????????????????? # ## "# ## | | ??????????######+############### ## ""#" ## | | ??????????# #" ""## ## | | ??????????# "# T"## ## | | ??????????# ####################### ""## ## | | ??????????# #?????????????????????# ""##+##### | | ??????????# #?????????????????????# # | | ??????????# #?????????????????????# # | | ??????????# #?????????????????????######## | | ??????????# #?????###????????????????????# | | ??????????# ####### ###################### | | ??????????# """T""" """" ## | | ??????????# """ """ """" BB ## | | ??????????# """" BB ######### | | ??????????# """" | | ??????????# "" """" | | ??????????# @" """" | | ??????????# """" R | | ??????????# """" #######^# | | ??????????# "????????????????#^? | | ??????????# "????????????????#?? | | ??????????# ####### ##########??????????????????? | | ??????????# ??????###???????????????????????????? | | ??????????# ????????????????????????????????????? | | ??????????# ????????????????????????????????????? | | ??????????# ????????????????????????????????????? | | ??????????# ????????????????????????????????????? | | ??????????# ????????????????????????????????????? | | ??????????? ??????????????????w?????????????????? | | ?????????????????????????????????????????????????? | | ?????????????????????????????????????????????????? | | ?????????????????????????????????????????????????? | | ?????????????????????????????????????????????????? | | ?????????????????????????????????????????????????? | | ?????????????????????????????????????????????????? | | ?????????????????????????????????????????????????? | | ?????????????????????????????????????????????????? | | ?????????????????????????????????????????????????? | | ?????????????????????????????????????????????????? | | ?????????????????????????????????????????????????? | | ?????????????????????????????????????????????????? | +----------------------------------------------------+ Best States ------------- Heat Dissipation 59 Energy Generation 25 Energy Capacity 310 Matter Stores 300 Matter Capacity 300 Sight Range 22 Robot Scan Range 20 Terrain Scan Range 20 Terrain Scan Density 410 Armor Coverage 225 Power Shielding 66 Propulsion Shielding 66 Phase Shifting 5 Evasion (%) 75 Recoil Reduction 2 Offensive Hacking 114 Defensive Hacking 36 Item Schematics ----------------- None Robot Schematics ------------------ None Fabricated ------------ Aerolev Unit | x1 | -6/Factory Field Propulsion Array | x2 | -5/Factory Hacking Suite | x1 | -5/Factory Lrn. Sensor Array | x1 | -5/Factory Lrn. Sensor Array | x1 | -5/Factory Power Sword | x2 | -4/Factory Hacking Suite | x1 | -4/Factory Hacking Suite | x1 | -4/Factory Lrn. Sensor Array | x1 | -3/Research Exp. Hacking Suite | x1 | -3/Research Exp. Cesium-ion Thruster | x1 | -3/Research Exp. Cesium-ion Thruster | x1 | -3/Research Lrn. Sensor Array | x1 | -2/Research Alien Tech Used ----------------- Core Reset Matrix High-powered Transdimensional Reconstructor Transdimensional Reconstructor Subatomic Replicator Achievements -------------- Home At Last? Challenges ------------ None Game ------ Seed ProtonCatalystGuard Manual? 0 Play Time 03:31:28 Cumulative 232.0 hours Start 2020.04.15 @ 20:36:49 End 2020.04.16 @ 00:15:22 Sessions 1 Manual Loads 0 Difficulty Rogue Special Mode None Game No. 128 Rogue 120 Adventurer 8 Explorer 0 Win Type 2 Total 12 Types 9/0/1/2/0/0/0 Lore% 78 Gallery% 78 Achievement% 66 Wizard Run 0 Options --------- ASCII 0 Keyboard 0 Movement Mouse Keybinds 0 Fullscreen 2 Font 14/SmallcapsGlow Map View 72x52 Tactical HUD 1 Map Filters NONE Filters NONE Steam 0 RUN: f80dad3d-44ad-4fe0-b0fc-6405e46be279